[Event "December 19 Late 2023"]
[Site "https://www.chess.com"]
[Date "2023.12.19"]
[Round "1"]
[White "Domingo Nunez, Alejandro"]
[Black "Polster, Christian"]
[Result "1-0"]
[Board "129"]
[TimeControl "180+1"]
[WhiteFideId "22245561"]
[BlackFideId "12965081"]
[WhiteElo "2252"]
[BlackElo "2141"]
[WhiteTeam "ESP"]
[BlackTeam "GER"]
[WhiteClock "0:00:25"]
[BlackClock "0:00:00"]

1. e4 {[%clk 0:03:00]}  c6 {[%clk 0:02:50]} 2. Nf3 {[%clk 0:03:00]}  d5 {[%clk 0:02:51]} 3. Nc3 {[%clk 0:03:00]}  dxe4 {[%clk 0:02:28]} 4. Nxe4 {[%clk 0:03:01]}  Nf6 {[%clk 0:02:20]} 5. Nxf6+ {[%clk 0:03:00]}  exf6 {[%clk 0:02:21]} 6. d4 {[%clk 0:03:00]}  Bd6 {[%clk 0:01:43]} 7. h3 {[%clk 0:02:59]}  O-O {[%clk 0:01:43]} 8. Be2 {[%clk 0:02:59]}  Re8 {[%clk 0:01:42]} 9. O-O {[%clk 0:03:00]}  Nd7 {[%clk 0:01:39]} 10. Re1 {[%clk 0:03:00]}  Nf8 {[%clk 0:01:39]} 11. Be3 {[%clk 0:03:00]}  Ng6 {[%clk 0:01:39]} 12. Qd2 {[%clk 0:03:01]}  Be6 {[%clk 0:01:38]} 13. c4 {[%clk 0:03:00]}  Qc7 {[%clk 0:01:25]} 14. d5 {[%clk 0:02:52]}  cxd5 {[%clk 0:01:20]} 15. cxd5 {[%clk 0:02:52]}  Bd7 {[%clk 0:01:17]} 16. Rac1 {[%clk 0:02:49]}  Qd8 {[%clk 0:01:15]} 17. Nd4 {[%clk 0:02:45]}  a6 {[%clk 0:01:08]} 18. Bd3 {[%clk 0:02:36]}  Rc8 {[%clk 0:00:45]} 19. Nf5 {[%clk 0:02:32]}  Bf8 {[%clk 0:00:36]} 20. Bb1 {[%clk 0:01:13]}  Ne5 {[%clk 0:00:26]} 21. Qd4 {[%clk 0:01:10]}  Qa5 {[%clk 0:00:20]} 22. d6 {[%clk 0:01:02]}  g6 {[%clk 0:00:10]} 23. Ne7+ {[%clk 0:00:43]}  Bxe7 {[%clk 0:00:08]} 24. dxe7 {[%clk 0:00:44]}  Rxc1 {[%clk 0:00:07]} 25. Rxc1 {[%clk 0:00:43]}  Rxe7 {[%clk 0:00:08]} 26. Qd6 {[%clk 0:00:38]}  Qd8 {[%clk 0:00:06]} 27. Qxf6 {[%clk 0:00:33]}  Re8 {[%clk 0:00:04]} 28. Qxd8 {[%clk 0:00:27]}  Rxd8 {[%clk 0:00:05]} 29. Rd1 {[%clk 0:00:27]}  Nc6 {[%clk 0:00:04]} 30. Bb6 {[%clk 0:00:27]}  Bg4 {[%clk 0:00:01]} 31. Rxd8+ {[%clk 0:00:26]}  Nxd8 {[%clk 0:00:01]} 32. hxg4 {[%clk 0:00:24]}  Ne6 {[%clk 0:00:00]} 33. Be4 {[%clk 0:00:25]} 1-0

[Event "December 19 Late 2023"]
[Site "https://www.chess.com"]
[Date "2023.12.19"]
[Round "1"]
[White "BenchGM"]
[Black "Rojas Alarcon, Julian Antonio"]
[Result "0-1"]
[Board "130"]
[TimeControl "180+1"]
[BlackFideId "5107407"]
[WhiteElo "2272"]
[BlackElo "2340"]
[BlackTeam "MEX"]
[WhiteClock "0:00:03"]
[BlackClock "0:01:50"]

1. e4 {[%clk 0:03:00]}  c5 {[%clk 0:02:58]} 2. Nf3 {[%clk 0:03:00]}  d6 {[%clk 0:02:58]} 3. d4 {[%clk 0:03:00]}  cxd4 {[%clk 0:02:59]} 4. Nxd4 {[%clk 0:03:01]}  Nf6 {[%clk 0:02:59]} 5. Nc3 {[%clk 0:03:01]}  g6 {[%clk 0:02:58]} 6. Be3 {[%clk 0:03:01]}  Bg7 {[%clk 0:02:58]} 7. f3 {[%clk 0:03:02]}  O-O {[%clk 0:02:57]} 8. Qd2 {[%clk 0:03:02]}  Nc6 {[%clk 0:02:58]} 9. O-O-O {[%clk 0:03:00]}  d5 {[%clk 0:02:58]} 10. Qe1 {[%clk 0:02:59]}  e5 {[%clk 0:02:57]} 11. Nxc6 {[%clk 0:02:58]}  bxc6 {[%clk 0:02:58]} 12. exd5 {[%clk 0:02:58]}  Nxd5 {[%clk 0:02:59]} 13. Bc4 {[%clk 0:02:57]}  Be6 {[%clk 0:03:00]} 14. Ne4 {[%clk 0:02:57]}  Qc7 {[%clk 0:03:00]} 15. Bc5 {[%clk 0:02:54]}  Rfd8 {[%clk 0:02:59]} 16. Qh4 {[%clk 0:02:53]}  h6 {[%clk 0:02:49]} 17. g4 {[%clk 0:02:53]}  Rab8 {[%clk 0:02:46]} 18. g5 {[%clk 0:02:50]}  h5 {[%clk 0:02:45]} 19. Qf2 {[%clk 0:02:49]}  Nf4 {[%clk 0:02:26]} 20. Bxe6 {[%clk 0:02:42]}  Nxe6 {[%clk 0:02:26]} 21. Bd6 {[%clk 0:02:27]}  Qa5 {[%clk 0:02:23]} 22. Bxb8 {[%clk 0:02:17]}  Rxb8 {[%clk 0:02:20]} 23. Kb1 {[%clk 0:01:51]}  Nxg5 {[%clk 0:02:18]} 24. Qc5 {[%clk 0:01:09]}  Qxc5 {[%clk 0:02:15]} 25. Nxc5 {[%clk 0:01:09]}  Nxf3 {[%clk 0:02:01]} 26. Rd7 {[%clk 0:01:08]}  e4 {[%clk 0:01:58]} 27. Nxe4 {[%clk 0:00:55]}  Rxb2+ {[%clk 0:01:57]} 28. Kc1 {[%clk 0:00:54]}  Rxa2 {[%clk 0:01:57]} 29. Kd1 {[%clk 0:00:31]}  Ra1+ {[%clk 0:01:56]} 30. Ke2 {[%clk 0:00:31]}  Rxh1 {[%clk 0:01:57]} 31. Kxf3 {[%clk 0:00:31]}  Rxh2 {[%clk 0:01:58]} 32. Rd8+ {[%clk 0:00:18]}  Bf8 {[%clk 0:01:56]} 33. Nf6+ {[%clk 0:00:18]}  Kg7 {[%clk 0:01:55]} 34. Ne8+ {[%clk 0:00:17]}  Kh6 {[%clk 0:01:56]} 35. Nf6 {[%clk 0:00:16]}  Bg7 {[%clk 0:01:52]} 36. Ng8+ {[%clk 0:00:13]}  Kh7 {[%clk 0:01:52]} 37. Ne7 {[%clk 0:00:09]}  Bf6 {[%clk 0:01:51]} 38. Rd7 {[%clk 0:00:08]}  Bxe7 {[%clk 0:01:51]} 39. Rxe7 {[%clk 0:00:09]}  Kg7 {[%clk 0:01:51]} 40. Rxa7 {[%clk 0:00:03]}  Rxc2 {[%clk 0:01:50]} 0-1

[Event "December 19 Late 2023"]
[Site "https://www.chess.com"]
[Date "2023.12.19"]
[Round "1"]
[White "Ambartsumova, Karina"]
[Black "Kaganskiy, Gleb"]
[Result "1-0"]
[Board "133"]
[TimeControl "180+1"]
[WhiteFideId "4166299"]
[BlackFideId "4132025"]
[WhiteElo "2240"]
[BlackElo "2128"]
[WhiteTeam "RUS"]
[BlackTeam "ISR"]
[WhiteClock "0:01:45"]
[BlackClock "0:00:19"]

1. d4 {[%clk 0:03:00]}  d5 {[%clk 0:02:59]} 2. c4 {[%clk 0:03:01]}  e6 {[%clk 0:02:59]} 3. Nc3 {[%clk 0:03:01]}  Nf6 {[%clk 0:02:58]} 4. cxd5 {[%clk 0:03:01]}  exd5 {[%clk 0:02:59]} 5. Bg5 {[%clk 0:03:01]}  Be7 {[%clk 0:02:59]} 6. e3 {[%clk 0:03:01]}  O-O {[%clk 0:02:59]} 7. Bd3 {[%clk 0:03:02]}  c6 {[%clk 0:02:59]} 8. Qc2 {[%clk 0:03:02]}  h6 {[%clk 0:02:59]} 9. Bh4 {[%clk 0:03:02]}  Ne8 {[%clk 0:02:57]} 10. Bg3 {[%clk 0:03:00]}  Nd6 {[%clk 0:02:54]} 11. Nf3 {[%clk 0:03:01]}  Re8 {[%clk 0:02:51]} 12. O-O {[%clk 0:02:58]}  Bf8 {[%clk 0:02:47]} 13. Ne5 {[%clk 0:02:57]}  Nd7 {[%clk 0:02:35]} 14. f4 {[%clk 0:02:52]}  Nf6 {[%clk 0:02:14]} 15. Bh4 {[%clk 0:02:52]}  Be7 {[%clk 0:02:12]} 16. Rae1 {[%clk 0:02:49]}  Nfe4 {[%clk 0:01:56]} 17. Bxe7 {[%clk 0:02:49]}  Qxe7 {[%clk 0:01:56]} 18. Nxe4 {[%clk 0:02:40]}  Nxe4 {[%clk 0:01:57]} 19. Bxe4 {[%clk 0:02:33]}  dxe4 {[%clk 0:01:58]} 20. f5 {[%clk 0:02:33]}  Qf6 {[%clk 0:01:00]} 21. Qxe4 {[%clk 0:02:30]}  c5 {[%clk 0:00:54]} 22. Qf4 {[%clk 0:02:25]}  b6 {[%clk 0:00:43]} 23. Ng4 {[%clk 0:02:19]}  Qg5 {[%clk 0:00:42]} 24. Qg3 {[%clk 0:01:46]}  Bxf5 {[%clk 0:00:31]} 25. Rxf5 {[%clk 0:01:45]}  Qxf5 {[%clk 0:00:19]} 26. Nxh6+ {[%clk 0:01:45]} 1-0

[Event "December 19 Late 2023"]
[Site "https://www.chess.com"]
[Date "2023.12.19"]
[Round "1"]
[White "Fernandez Hernandez, Gerardo"]
[Black "Antunez Soler, Luis"]
[Result "1/2-1/2"]
[Board "134"]
[TimeControl "180+1"]
[WhiteFideId "2207400"]
[BlackFideId "3513335"]
[WhiteElo "2259"]
[BlackElo "2154"]
[WhiteTeam "ESP"]
[BlackTeam "CUB"]
[WhiteClock "0:00:04"]
[BlackClock "0:00:04"]

1. e4 {[%clk 0:03:00]}  e6 {[%clk 0:02:59]} 2. d3 {[%clk 0:03:00]}  d5 {[%clk 0:03:00]} 3. Nd2 {[%clk 0:03:01]}  Nf6 {[%clk 0:03:00]} 4. Ngf3 {[%clk 0:03:01]}  b6 {[%clk 0:03:00]} 5. e5 {[%clk 0:02:59]}  Nfd7 {[%clk 0:03:00]} 6. d4 {[%clk 0:02:58]}  c5 {[%clk 0:03:01]} 7. c3 {[%clk 0:02:58]}  Nc6 {[%clk 0:02:59]} 8. a3 {[%clk 0:02:47]}  Be7 {[%clk 0:02:57]} 9. Bd3 {[%clk 0:02:47]}  f6 {[%clk 0:02:56]} 10. O-O {[%clk 0:02:35]}  O-O {[%clk 0:02:38]} 11. Re1 {[%clk 0:02:32]}  f5 {[%clk 0:02:06]} 12. b4 {[%clk 0:02:26]}  cxd4 {[%clk 0:02:02]} 13. cxd4 {[%clk 0:02:25]}  a6 {[%clk 0:01:51]} 14. Nb3 {[%clk 0:02:00]}  b5 {[%clk 0:01:50]} 15. Nc5 {[%clk 0:01:58]}  Nb6 {[%clk 0:01:51]} 16. g3 {[%clk 0:01:44]}  Nc4 {[%clk 0:01:50]} 17. h4 {[%clk 0:01:43]}  h6 {[%clk 0:01:48]} 18. Be3 {[%clk 0:01:36]}  a5 {[%clk 0:01:44]} 19. Qb3 {[%clk 0:01:06]}  axb4 {[%clk 0:01:42]} 20. axb4 {[%clk 0:01:05]}  Rxa1 {[%clk 0:01:42]} 21. Rxa1 {[%clk 0:01:06]}  g5 {[%clk 0:01:33]} 22. hxg5 {[%clk 0:01:04]}  hxg5 {[%clk 0:01:34]} 23. Ra8 {[%clk 0:00:54]}  Qb6 {[%clk 0:01:12]} 24. Bxg5 {[%clk 0:00:25]}  Bxg5 {[%clk 0:01:10]} 25. Nxg5 {[%clk 0:00:25]}  Nxd4 {[%clk 0:01:10]} 26. Qd1 {[%clk 0:00:25]}  Nxe5 {[%clk 0:01:02]} 27. Qh5 {[%clk 0:00:20]}  Qc7 {[%clk 0:00:57]} 28. Rxc8 {[%clk 0:00:11]}  Rxc8 {[%clk 0:00:52]} 29. Ngxe6 {[%clk 0:00:09]}  Ndf3+ {[%clk 0:00:43]} 30. Kg2 {[%clk 0:00:07]}  Qh7 {[%clk 0:00:37]} 31. Qxh7+ {[%clk 0:00:06]}  Kxh7 {[%clk 0:00:38]} 32. Bxf5+ {[%clk 0:00:06]}  Kh8 {[%clk 0:00:36]} 33. g4 {[%clk 0:00:05]}  Ra8 {[%clk 0:00:32]} 34. Kg3 {[%clk 0:00:04]}  Ra3 {[%clk 0:00:28]} 35. Kf4 {[%clk 0:00:04]}  Kg8 {[%clk 0:00:26]} 36. Ng5 {[%clk 0:00:02]}  Nxg5 {[%clk 0:00:22]} 37. Kxe5 {[%clk 0:00:03]}  Rf3 {[%clk 0:00:16]} 38. Be6+ {[%clk 0:00:04]}  Kg7 {[%clk 0:00:15]} 39. Bxd5 {[%clk 0:00:03]}  Rxf2 {[%clk 0:00:15]} 40. Bc6 {[%clk 0:00:03]}  Rb2 {[%clk 0:00:15]} 41. Bxb5 {[%clk 0:00:03]}  Rxb4 {[%clk 0:00:15]} 42. Bd3 {[%clk 0:00:03]}  Nf7+ {[%clk 0:00:11]} 43. Kf5 {[%clk 0:00:03]}  Rb2 {[%clk 0:00:09]} 44. Be4 {[%clk 0:00:03]}  Ra2 {[%clk 0:00:08]} 45. Ne6+ {[%clk 0:00:04]}  Kg8 {[%clk 0:00:07]} 46. g5 {[%clk 0:00:04]}  Ra5+ {[%clk 0:00:05]} 47. Kg6 {[%clk 0:00:05]}  Ne5+ {[%clk 0:00:05]} 48. Kf6 {[%clk 0:00:05]}  Nd7+ {[%clk 0:00:05]} 49. Kg6 {[%clk 0:00:05]}  Ra6 {[%clk 0:00:05]} 50. Bd5 {[%clk 0:00:04]}  Nf8+ {[%clk 0:00:05]} 51. Kf6 {[%clk 0:00:04]}  Nd7+ {[%clk 0:00:02]} 52. Kg6 {[%clk 0:00:04]}  Nf8+ {[%clk 0:00:02]} 53. Kf6 {[%clk 0:00:04]}  Nh7+ {[%clk 0:00:02]} 54. Kf5 {[%clk 0:00:04]}  Kh8 {[%clk 0:00:03]} 55. g6 {[%clk 0:00:04]}  Ra7 {[%clk 0:00:03]} 56. gxh7 {[%clk 0:00:03]}  Rxh7 {[%clk 0:00:03]} 57. Ng5 {[%clk 0:00:03]}  Rh5 {[%clk 0:00:04]} 58. Bf7 {[%clk 0:00:03]}  Rxg5+ {[%clk 0:00:04]} 59. Kxg5 {[%clk 0:00:04]} 1/2-1/2

[Event "December 19 Late 2023"]
[Site "https://www.chess.com"]
[Date "2023.12.19"]
[Round "1"]
[White "Sivakumar, Shaaketh"]
[Black "Igel2023"]
[Result "1-0"]
[Board "135"]
[TimeControl "180+1"]
[WhiteFideId "30940176"]
[WhiteElo "2292"]
[BlackElo "2248"]
[WhiteTeam "USA"]
[WhiteClock "0:01:50"]
[BlackClock "0:01:00"]

1. c4 {[%clk 0:03:00]}  Nf6 {[%clk 0:02:59]} 2. Nf3 {[%clk 0:03:01]}  c5 {[%clk 0:02:55]} 3. g3 {[%clk 0:03:01]}  d5 {[%clk 0:02:55]} 4. cxd5 {[%clk 0:03:00]}  Nxd5 {[%clk 0:02:55]} 5. Bg2 {[%clk 0:03:01]}  Nc6 {[%clk 0:02:55]} 6. Nc3 {[%clk 0:02:56]}  Nc7 {[%clk 0:02:54]} 7. O-O {[%clk 0:02:56]}  e5 {[%clk 0:02:53]} 8. d3 {[%clk 0:02:55]}  Be7 {[%clk 0:02:52]} 9. Be3 {[%clk 0:02:53]}  b6 {[%clk 0:02:38]} 10. Rc1 {[%clk 0:02:52]}  Bd7 {[%clk 0:02:33]} 11. a3 {[%clk 0:02:49]}  Rc8 {[%clk 0:02:16]} 12. Nd2 {[%clk 0:02:46]}  O-O {[%clk 0:02:13]} 13. Nd5 {[%clk 0:02:43]}  Nxd5 {[%clk 0:02:12]} 14. Bxd5 {[%clk 0:02:44]}  Bh3 {[%clk 0:02:09]} 15. Bg2 {[%clk 0:02:43]}  Qd7 {[%clk 0:02:07]} 16. Nc4 {[%clk 0:02:39]}  Bxg2 {[%clk 0:02:04]} 17. Kxg2 {[%clk 0:02:38]}  f5 {[%clk 0:01:59]} 18. f4 {[%clk 0:02:31]}  exf4 {[%clk 0:01:49]} 19. Bxf4 {[%clk 0:02:30]}  Nd4 {[%clk 0:01:41]} 20. e3 {[%clk 0:02:17]}  Ne6 {[%clk 0:01:39]} 21. Ne5 {[%clk 0:02:16]}  Qd5+ {[%clk 0:01:36]} 22. Qf3 {[%clk 0:02:16]}  Rfd8 {[%clk 0:01:31]} 23. h4 {[%clk 0:02:00]}  Nxf4+ {[%clk 0:01:28]} 24. gxf4 {[%clk 0:02:00]}  Qxf3+ {[%clk 0:01:23]} 25. Kxf3 {[%clk 0:02:01]}  Bf6 {[%clk 0:01:23]} 26. Rfd1 {[%clk 0:01:54]}  Bxe5 {[%clk 0:01:08]} 27. fxe5 {[%clk 0:01:55]}  Rd5 {[%clk 0:01:08]} 28. d4 {[%clk 0:01:51]}  cxd4 {[%clk 0:01:00]} 29. Rxc8+ {[%clk 0:01:50]} 1-0

[Event "December 19 Late 2023"]
[Site "https://www.chess.com"]
[Date "2023.12.19"]
[Round "1"]
[White "Vila Dupla, Aurelio"]
[Black "Assylov, Miras"]
[Result "0-1"]
[Board "142"]
[TimeControl "180+1"]
[WhiteFideId "2203383"]
[BlackFideId "13728873"]
[WhiteElo "2009"]
[BlackElo "1991"]
[WhiteTeam "ESP"]
[BlackTeam "KAZ"]
[WhiteClock "0:00:00"]
[BlackClock "0:00:04"]

1. Nf3 {[%clk 0:02:58]}  g6 {[%clk 0:02:45]} 2. d4 {[%clk 0:02:57]}  Nf6 {[%clk 0:02:44]} 3. g3 {[%clk 0:02:56]}  b6 {[%clk 0:02:44]} 4. Bg2 {[%clk 0:02:55]}  Bb7 {[%clk 0:02:44]} 5. O-O {[%clk 0:02:56]}  Bg7 {[%clk 0:02:45]} 6. b3 {[%clk 0:02:50]}  O-O {[%clk 0:02:44]} 7. Bb2 {[%clk 0:02:51]}  d6 {[%clk 0:02:26]} 8. Nbd2 {[%clk 0:02:50]}  Nbd7 {[%clk 0:02:26]} 9. c4 {[%clk 0:02:43]}  e6 {[%clk 0:02:23]} 10. Qc2 {[%clk 0:02:27]}  c5 {[%clk 0:02:10]} 11. Rad1 {[%clk 0:02:13]}  Qe7 {[%clk 0:02:00]} 12. Rfe1 {[%clk 0:01:44]}  e5 {[%clk 0:01:53]} 13. dxe5 {[%clk 0:01:38]}  dxe5 {[%clk 0:01:50]} 14. e4 {[%clk 0:01:29]}  Ne8 {[%clk 0:01:29]} 15. Nb1 {[%clk 0:01:21]}  Nc7 {[%clk 0:01:28]} 16. Nc3 {[%clk 0:01:19]}  Ne6 {[%clk 0:01:28]} 17. Nd5 {[%clk 0:01:19]}  Qd8 {[%clk 0:01:29]} 18. Bh3 {[%clk 0:01:04]}  Nd4 {[%clk 0:01:26]} 19. Nxd4 {[%clk 0:01:03]}  cxd4 {[%clk 0:01:08]} 20. Bc1 {[%clk 0:01:02]}  Nc5 {[%clk 0:01:02]} 21. Qd2 {[%clk 0:00:57]}  b5 {[%clk 0:00:50]} 22. Qg5 {[%clk 0:00:52]}  f6 {[%clk 0:00:42]} 23. Qh4 {[%clk 0:00:47]}  bxc4 {[%clk 0:00:42]} 24. bxc4 {[%clk 0:00:46]}  Bxd5 {[%clk 0:00:25]} 25. cxd5 {[%clk 0:00:42]}  Qa5 {[%clk 0:00:21]} 26. Re2 {[%clk 0:00:18]}  Na4 {[%clk 0:00:20]} 27. Bd2 {[%clk 0:00:16]}  Qa6 {[%clk 0:00:19]} 28. Bf1 {[%clk 0:00:14]}  Nb2 {[%clk 0:00:16]} 29. Rc1 {[%clk 0:00:06]}  Qxa2 {[%clk 0:00:09]} 30. Bh6 {[%clk 0:00:04]}  Rac8 {[%clk 0:00:09]} 31. Rxc8 {[%clk 0:00:02]}  Rxc8 {[%clk 0:00:10]} 32. Bxg7 {[%clk 0:00:02]}  Kxg7 {[%clk 0:00:10]} 33. Kg2 {[%clk 0:00:02]}  Qa3 {[%clk 0:00:08]} 34. Qg4 {[%clk 0:00:02]}  Rd8 {[%clk 0:00:07]} 35. Qe6 {[%clk 0:00:02]}  Nd3 {[%clk 0:00:06]} 36. Rc2 {[%clk 0:00:02]}  Qd6 {[%clk 0:00:03]} 37. Qxd6 {[%clk 0:00:02]}  Rxd6 {[%clk 0:00:04]} 38. Rc7+ {[%clk 0:00:02]}  Kh6 {[%clk 0:00:04]} 39. Rxa7 {[%clk 0:00:03]}  Nc5 {[%clk 0:00:03]} 40. Rc7 {[%clk 0:00:02]}  Nxe4 {[%clk 0:00:03]} 41. Rc6 {[%clk 0:00:03]}  Rxd5 {[%clk 0:00:02]} 42. Bd3 {[%clk 0:00:01]}  Nc5 {[%clk 0:00:02]} 43. Be4 {[%clk 0:00:02]}  Nxe4 {[%clk 0:00:03]} 44. Rc8 {[%clk 0:00:02]}  Rd6 {[%clk 0:00:03]} 45. h4 {[%clk 0:00:02]}  d3 {[%clk 0:00:03]} 46. h5 {[%clk 0:00:00]}  d2 {[%clk 0:00:04]} 0-1

[Event "December 19 Late 2023"]
[Site "https://www.chess.com"]
[Date "2023.12.19"]
[Round "1"]
[White "Chemin, Justo Reinaldo"]
[Black "Richter, Paul"]
[Result "1-0"]
[Board "146"]
[TimeControl "180+1"]
[WhiteFideId "2101580"]
[BlackFideId "2046350"]
[WhiteElo "1940"]
[BlackElo "2576"]
[WhiteTeam "BRA"]
[BlackTeam "USA"]
[WhiteClock "0:00:14"]
[BlackClock "0:00:00"]

1. e4 {[%clk 0:02:58]}  c5 {[%clk 0:02:59]} 2. Nf3 {[%clk 0:02:57]}  d6 {[%clk 0:02:55]} 3. d4 {[%clk 0:02:57]}  cxd4 {[%clk 0:02:56]} 4. Nxd4 {[%clk 0:02:56]}  Nf6 {[%clk 0:02:55]} 5. Nc3 {[%clk 0:02:56]}  g6 {[%clk 0:02:54]} 6. Be3 {[%clk 0:02:55]}  Bg7 {[%clk 0:02:53]} 7. f3 {[%clk 0:02:54]}  O-O {[%clk 0:02:53]} 8. Qd2 {[%clk 0:02:55]}  Nc6 {[%clk 0:02:51]} 9. Bc4 {[%clk 0:02:53]}  Bd7 {[%clk 0:02:50]} 10. O-O-O {[%clk 0:02:51]}  Rb8 {[%clk 0:02:49]} 11. h4 {[%clk 0:02:41]}  b5 {[%clk 0:02:45]} 12. Bb3 {[%clk 0:02:07]}  a5 {[%clk 0:02:43]} 13. Ndxb5 {[%clk 0:02:00]}  a4 {[%clk 0:02:33]} 14. Bxa4 {[%clk 0:01:59]}  Qa5 {[%clk 0:02:31]} 15. b3 {[%clk 0:01:46]}  Rfc8 {[%clk 0:02:24]} 16. h5 {[%clk 0:01:28]}  Nb4 {[%clk 0:02:21]} 17. a3 {[%clk 0:01:20]}  Bxb5 {[%clk 0:01:19]} 18. axb4 {[%clk 0:01:17]}  Qa6 {[%clk 0:00:45]} 19. Nxb5 {[%clk 0:01:12]}  Rxb5 {[%clk 0:00:37]} 20. Qd3 {[%clk 0:01:10]}  Rcb8 {[%clk 0:00:24]} 21. hxg6 {[%clk 0:01:06]}  hxg6 {[%clk 0:00:22]} 22. Bxb5 {[%clk 0:01:01]}  Rxb5 {[%clk 0:00:23]} 23. Kd2 {[%clk 0:01:01]}  Qc6 {[%clk 0:00:20]} 24. Ke2 {[%clk 0:00:58]}  Rxb4 {[%clk 0:00:20]} 25. Ra1 {[%clk 0:00:55]}  Rb8 {[%clk 0:00:18]} 26. Ra6 {[%clk 0:00:55]}  Qc7 {[%clk 0:00:17]} 27. Rha1 {[%clk 0:00:49]}  d5 {[%clk 0:00:15]} 28. Ra7 {[%clk 0:00:48]}  Qg3 {[%clk 0:00:11]} 29. Kf1 {[%clk 0:00:43]}  dxe4 {[%clk 0:00:10]} 30. Qe2 {[%clk 0:00:29]}  exf3 {[%clk 0:00:09]} 31. Qxf3 {[%clk 0:00:29]}  Qe5 {[%clk 0:00:09]} 32. Bf4 {[%clk 0:00:26]}  Qb5+ {[%clk 0:00:06]} 33. c4 {[%clk 0:00:25]}  Qxb3 {[%clk 0:00:02]} 34. Bxb8 {[%clk 0:00:21]}  Qxc4+ {[%clk 0:00:02]} 35. Qe2 {[%clk 0:00:19]}  Nd5 {[%clk 0:00:03]} 36. Rd7 {[%clk 0:00:16]}  Qf4+ {[%clk 0:00:00]} 37. Qf3 {[%clk 0:00:14]} 1-0

[Event "December 19 Late 2023"]
[Site "https://www.chess.com"]
[Date "2023.12.19"]
[Round "1"]
[White "Melamed, Daniel"]
[Black "Hasanagic, Anel"]
[Result "1-0"]
[Board "148"]
[TimeControl "180+1"]
[WhiteFideId "3229076"]
[BlackFideId "14605791"]
[WhiteElo "1908"]
[BlackElo "2209"]
[WhiteTeam "AUS"]
[BlackTeam "SLO"]
[WhiteClock "0:00:43"]
[BlackClock "0:00:11"]

1. d4 {[%clk 0:03:00]}  f5 {[%clk 0:02:59]} 2. Bg5 {[%clk 0:02:59]}  d5 {[%clk 0:02:58]} 3. Nf3 {[%clk 0:02:58]}  Nd7 {[%clk 0:02:57]} 4. c4 {[%clk 0:02:57]}  c6 {[%clk 0:02:54]} 5. e3 {[%clk 0:02:57]}  Ngf6 {[%clk 0:02:53]} 6. Nc3 {[%clk 0:02:54]}  e6 {[%clk 0:02:52]} 7. Be2 {[%clk 0:02:53]}  Be7 {[%clk 0:02:50]} 8. O-O {[%clk 0:02:53]}  O-O {[%clk 0:02:49]} 9. Rb1 {[%clk 0:02:48]}  Ne4 {[%clk 0:02:27]} 10. Bxe7 {[%clk 0:02:46]}  Qxe7 {[%clk 0:02:28]} 11. Qc2 {[%clk 0:02:45]}  Rf6 {[%clk 0:02:04]} 12. b4 {[%clk 0:02:42]}  Nf8 {[%clk 0:02:00]} 13. b5 {[%clk 0:02:41]}  Bd7 {[%clk 0:01:45]} 14. bxc6 {[%clk 0:02:39]}  bxc6 {[%clk 0:01:46]} 15. Rb7 {[%clk 0:02:31]}  Rh6 {[%clk 0:01:45]} 16. Rfb1 {[%clk 0:02:17]}  Qf6 {[%clk 0:01:17]} 17. Rc7 {[%clk 0:01:43]}  Qd8 {[%clk 0:00:44]} 18. Rbb7 {[%clk 0:01:42]}  Rc8 {[%clk 0:00:42]} 19. Rxc8 {[%clk 0:01:38]}  Qxc8 {[%clk 0:00:43]} 20. Rxa7 {[%clk 0:01:35]}  Qb8 {[%clk 0:00:43]} 21. Ra3 {[%clk 0:01:28]}  Ng6 {[%clk 0:00:26]} 22. Qb3 {[%clk 0:01:19]}  Qd6 {[%clk 0:00:17]} 23. Ra8+ {[%clk 0:01:17]}  Kf7 {[%clk 0:00:17]} 24. g3 {[%clk 0:00:55]}  Nxc3 {[%clk 0:00:13]} 25. Qxc3 {[%clk 0:00:56]}  f4 {[%clk 0:00:10]} 26. exf4 {[%clk 0:00:50]}  Nxf4 {[%clk 0:00:11]} 27. Ne5+ {[%clk 0:00:47]}  Ke7 {[%clk 0:00:11]} 28. gxf4 {[%clk 0:00:43]} 1-0

[Event "December 19 Late 2023"]
[Site "https://www.chess.com"]
[Date "2023.12.19"]
[Round "1"]
[White "Pulpan, Jakub"]
[Black "Palmer, Reegan"]
[Result "1-0"]
[Board "151"]
[TimeControl "180+1"]
[WhiteFideId "302759"]
[BlackFideId "14322145"]
[WhiteElo "2501"]
[BlackElo "1814"]
[WhiteTeam "CZE"]
[BlackTeam "RSA"]
[WhiteClock "0:01:56"]
[BlackClock "0:02:22"]

1. c4 {[%clk 0:02:18]}  Nf6 {[%clk 0:02:54]} 2. Nc3 {[%clk 0:02:14]}  g6 {[%clk 0:02:54]} 3. d4 {[%clk 0:02:08]}  Bg7 {[%clk 0:02:51]} 4. Nf3 {[%clk 0:02:07]}  c5 {[%clk 0:02:51]} 5. g3 {[%clk 0:02:04]}  O-O {[%clk 0:02:51]} 6. Bg2 {[%clk 0:02:04]}  d6 {[%clk 0:02:47]} 7. O-O {[%clk 0:02:04]}  e6 {[%clk 0:02:46]} 8. b3 {[%clk 0:02:04]}  Nc6 {[%clk 0:02:43]} 9. Bb2 {[%clk 0:02:03]}  Qc7 {[%clk 0:02:40]} 10. Rc1 {[%clk 0:02:00]}  a6 {[%clk 0:02:40]} 11. Qd2 {[%clk 0:01:56]}  cxd4 {[%clk 0:02:31]} 12. Nxd4 {[%clk 0:01:57]}  Nxd4 {[%clk 0:02:32]} 13. Qxd4 {[%clk 0:01:57]}  Nd7 {[%clk 0:02:29]} 14. Qxg7+ {[%clk 0:01:56]}  Kxg7 {[%clk 0:02:22]} 15. Nd5+ {[%clk 0:01:56]} 1-0

[Event "December 19 Late 2023"]
[Site "https://www.chess.com"]
[Date "2023.12.19"]
[Round "1"]
[White "Asish Panda"]
[Black "Essing, Arnold"]
[Result "0-1"]
[Board "153"]
[TimeControl "180+1"]
[WhiteFideId "45012458"]
[BlackFideId "4619862"]
[WhiteElo "1767"]
[BlackElo "2257"]
[WhiteTeam "IND"]
[BlackTeam "GER"]
[WhiteClock "0:00:01"]
[BlackClock "0:00:32"]

1. e4 {[%clk 0:03:00]}  Nf6 {[%clk 0:02:58]} 2. Nc3 {[%clk 0:03:00]}  e5 {[%clk 0:02:58]} 3. Nf3 {[%clk 0:02:54]}  Nc6 {[%clk 0:02:58]} 4. Bc4 {[%clk 0:02:53]}  Nxe4 {[%clk 0:02:57]} 5. Nxe4 {[%clk 0:02:52]}  d5 {[%clk 0:02:56]} 6. Bd3 {[%clk 0:02:52]}  dxe4 {[%clk 0:02:56]} 7. Bxe4 {[%clk 0:02:51]}  Bd6 {[%clk 0:02:57]} 8. O-O {[%clk 0:02:50]}  O-O {[%clk 0:02:57]} 9. c3 {[%clk 0:02:48]}  Bg4 {[%clk 0:02:56]} 10. h3 {[%clk 0:02:47]}  Bh5 {[%clk 0:02:55]} 11. d3 {[%clk 0:02:43]}  f5 {[%clk 0:02:45]} 12. Qb3+ {[%clk 0:02:33]}  Kh8 {[%clk 0:02:43]} 13. Bxc6 {[%clk 0:02:31]}  bxc6 {[%clk 0:02:43]} 14. Ng5 {[%clk 0:02:31]}  Qe7 {[%clk 0:02:35]} 15. d4 {[%clk 0:02:22]}  h6 {[%clk 0:02:17]} 16. dxe5 {[%clk 0:02:14]}  Qxe5 {[%clk 0:02:13]} 17. f4 {[%clk 0:01:45]}  Qc5+ {[%clk 0:02:12]} 18. Kh1 {[%clk 0:01:43]}  hxg5 {[%clk 0:02:12]} 19. fxg5 {[%clk 0:01:43]}  Be2 {[%clk 0:01:53]} 20. Re1 {[%clk 0:01:22]}  Qe5 {[%clk 0:01:51]} 21. Kg1 {[%clk 0:01:02]}  Rae8 {[%clk 0:01:39]} 22. c4 {[%clk 0:00:37]}  Qh2+ {[%clk 0:01:16]} 23. Kf2 {[%clk 0:00:36]}  Bc5+ {[%clk 0:01:16]} 24. Be3 {[%clk 0:00:36]}  Bxe3+ {[%clk 0:01:10]} 25. Qxe3 {[%clk 0:00:22]}  Rxe3 {[%clk 0:01:10]} 26. Kxe3 {[%clk 0:00:22]}  Bxc4 {[%clk 0:00:56]} 27. Kd2 {[%clk 0:00:18]}  Qxg2+ {[%clk 0:00:45]} 28. Kc3 {[%clk 0:00:03]}  Bd5 {[%clk 0:00:45]} 29. Rad1 {[%clk 0:00:02]}  Rb8 {[%clk 0:00:38]} 30. b3 {[%clk 0:00:02]}  Qxg5 {[%clk 0:00:33]} 31. Rg1 {[%clk 0:00:02]}  Qf6+ {[%clk 0:00:33]} 32. Kc2 {[%clk 0:00:02]}  Be4+ {[%clk 0:00:33]} 33. Kc1 {[%clk 0:00:01]}  Qc3# {[%clk 0:00:32]} 0-1